bitfinex-derivatives/quotes_ETHF0:USTF0_20241017
["timestamp","ask_amount","ask_price","bid_price","bid_amount"]
[1729183870562,2.98,2615.9,2615.7,0.4285]
[1729183870752,2.98,2615.9,2615.8,0.38231]
[1729183870753,3.3623,2615.9,2615.8,0.38231]
[1729183870958,2.98,2615.9,2615.7,0.4285]
[1729183871155,3.3623,2615.9,2615.8,0.38231]
[1729183871761,0.3922,2616.1,2615.7,1.42873224]
[1729183871762,2.98,2616.1,2615.7,1.42873224]
[1729183871956,2.98,2616.1,2615.8,1.00023224]
[1729183872159,0.38228,2616.0,2615.9,0.38228]
[1729183872364,2.98,2616.1,2615.8,1.00023224]
[1729183872554,3.36228,2616.1,2616.0,0.38228]
[1729183872861,0.38228,2616.0,2615.9,1.00023224]
[1729183873061,2.98,2616.1,2615.8,1.38252224]
[1729183873256,0.38229,2615.9,2615.8,1.38252224]
[1729183873464,0.38229,2615.9,2615.8,2.7428324]
[1729183874168,0.38229,2615.9,2615.8,3.74643525]
[1729183874475,0.38229,2615.9,2615.8,6.46732307]
[1729183874768,0.38229,2615.9,2615.8,3.74644525]
[1729183875064,0.38229,2615.9,2615.8,6.46752035]
[1729183875462,4.65029448,2616.3,2615.8,9.90842035]
[1729183875663,0.38225,2616.2,2616.1,1.00025731]
[1729183875871,0.38225,2616.2,2616.1,1.42085731]
[1729183876268,0.38225,2616.2,2616.1,2.78156287]
[1729183876473,0.38225,2616.2,2616.1,3.28169153]
[1729183876773,0.38225,2616.2,2616.1,1.00038924]
[1729183877170,0.38226,2616.1,2616.0,1.00038924]
[1729183877370,3.36226,2616.1,2616.0,1.00038924]
[1729183878072,3.36226,2616.1,2616.0,2.36150141]
[1729183878267,13.18466,2616.1,2616.0,1.00038924]
[1729183878467,13.18466,2616.1,2615.9,1.00038924]
[1729183878468,12.8024,2616.1,2615.9,1.00038924]
[1729183878670,1.18048,2616.0,2615.9,1.00038924]
[1729183879078,0.38229,2615.9,2615.8,1.00038924]
[1729183879390,0.38229,2615.9,2615.7,1.00038924]
[1729183879391,0.38231,2615.8,2615.7,1.00038924]
[1729183880084,0.38232,2615.7,2615.6,1.00038924]
[1729183880278,0.38234,2615.6,2615.5,1.00111578]
[1729183880478,0.38234,2615.6,2615.3,1.50038597]
[1729183880479,0.38236,2615.4,2615.3,1.50038597]
[1729183880679,0.38241,2615.1,2615.0,1.50038597]
[1729183880888,0.38241,2615.1,2615.0,1.36152421]
[1729183881381,2.4338932,2615.2,2614.9,1.5018362]
[1729183881588,0.38242,2615.0,2614.9,1.5018362]
[1729183881788,0.38242,2615.0,2614.9,2.85671574]
[1729183882285,2.4338932,2615.2,2614.9,1.73731954]
[1729183882489,0.38242,2615.1,2615.0,3.23849833]
[1729183882883,2.98,2615.4,2615.0,2.85607833]
[1729183883190,0.38237,2615.4,2615.3,0.38236]
[1729183883783,0.38237,2615.4,2615.3,0.77956]
[1729183883981,6.1878,2615.6,2615.3,0.3972]
[1729183884177,2.98,2615.8,2615.3,1.89839879]
[1729183884382,6.1878,2616.0,2615.4,2.85621351]
[1729183884586,0.3823,2615.9,2615.8,0.3823]
[1729183884799,6.57009,2616.0,2615.8,0.3823]
[1729183885086,6.57009,2616.0,2615.9,0.4271]
[1729183885087,6.1878,2616.0,2615.9,0.4271]
[1729183885385,6.1878,2616.0,2615.9,0.80939]
[1729183885582,6.1878,2616.0,2615.9,0.4271]
[1729183885780,6.57008,2616.0,2615.9,0.4271]
[1729183885984,3.36228,2616.0,2615.9,0.4271]
[1729183886380,2.98,2616.0,2615.9,0.80939]
[1729183886587,3.36228,2616.0,2615.9,0.80939]
[1729183886895,2.98,2616.0,2615.9,0.80939]
[1729183887082,2.98,2616.0,2615.9,1.21429]
[1729183887083,3.36228,2616.0,2615.9,1.21429]
[1729183887785,3.36228,2616.0,2615.9,2.56953259]
[1729183887988,0.38227,2616.1,2615.9,2.56953259]
[1729183888295,3.36225,2616.2,2616.1,0.38226]
[1729183888582,3.36225,2616.2,2616.1,1.35527664]
[1729183889093,3.36225,2616.2,2616.1,2.85647543]
[1729183890687,2.98,2616.2,2616.1,1.73754917]
[1729183890892,3.36225,2616.2,2616.1,3.23917335]
[1729183891090,2.98,2616.2,2616.1,1.73754917]
[1729183891385,2.98,2616.2,2616.1,3.74138426]
[1729183891579,2.98,2616.2,2616.1,1.73754917]
[1729183891783,2.98,2616.2,2616.1,3.74138426]
[1729183892286,3.36225,2616.2,2616.1,1.73754917]
[1729183892495,3.36225,2616.2,2616.1,3.74138426]
[1729183892789,2.98,2616.2,2616.1,3.74138426]
[1729183892986,3.36225,2616.2,2616.1,6.45164565]
[1729183893179,3.36225,2616.2,2616.1,3.74138426]
[1729183893582,2.98,2616.2,2616.1,3.74138426]
[1729183893885,3.36225,2616.2,2616.1,3.74138426]
[1729183894188,3.36225,2616.2,2616.1,3.35912426]
[1729183894391,3.36225,2616.2,2616.1,1.73754917]
[1729183894691,3.36225,2616.2,2616.1,3.23902907]
[1729183894896,3.36225,2616.2,2616.1,1.73754917]
[1729183895391,3.36225,2616.2,2616.1,1.35506022]
[1729183895689,3.36225,2616.2,2616.1,2.85647729]
[1729183896198,3.36225,2616.2,2615.9,2.83583509]
[1729183896199,0.38228,2616.0,2615.9,0.4049]
[1729183896389,3.1708686,2616.0,2615.5,5.10121707]
[1729183896584,3.36234,2615.6,2615.5,3.5998]
[1729183896791,3.36234,2615.6,2615.5,3.2078]
[1729183901894,0.38236,2615.4,2615.3,3.2078]
[1729183902896,3.93585,2615.6,2615.3,3.2078]
[1729183902897,0.38236,2615.5,2615.4,0.38236]
[1729183903289,0.38235,2615.6,2615.5,0.38234]
[1729183903596,0.38233,2615.7,2615.6,0.38233]
[1729183904186,0.38233,2615.7,2615.6,3.23881766]
[1729183904593,0.38233,2615.7,2615.6,2.85652751]
[1729183904790,0.38233,2615.7,2615.6,3.26402751]
[1729183904991,0.38233,2615.7,2615.6,3.64636751]
[1729183906397,0.38233,2615.7,2615.6,4.06166751]
[1729183906602,0.38233,2615.7,2615.6,3.67932751]
[1729183908591,0.38233,2615.7,2615.6,2.85652751]
[1729183908792,0.38233,2615.7,2615.6,1.35511044]
[1729183909294,0.38232,2615.7,2615.6,1.355315]
[1729183909497,0.38232,2615.7,2615.6,2.85673207]
[1729183909905,0.38232,2615.7,2615.6,1.355315]
[1729183910098,0.38232,2615.7,2615.6,2.85673207]
[1729183911005,0.38232,2615.7,2615.6,1.355315]
[1729183911006,10.20552,2615.7,2615.6,1.355315]
[1729183911204,10.77903,2615.7,2615.3,1.50141707]
[1729183911398,0.38238,2615.3,2615.2,1.50141707]
[1729183911699,0.38239,2615.2,2615.1,1.50141707]
[1729183911900,3.36239,2615.2,2615.1,2.85681456]
[1729183913195,3.36239,2615.2,2615.1,1.35539749]
[1729183913494,0.38239,2615.2,2615.1,1.35539749]
[1729183913794,7.6188,2615.4,2615.1,2.85642451]
[1729183913995,7.6188,2615.4,2615.2,2.85634961]
[1729183914198,3.2078,2615.4,2615.3,1.73732659]
[1729183914389,3.59016,2615.4,2615.3,3.23872941]
[1729183914593,3.59016,2615.4,2615.3,1.73732659]
[1729183914594,3.2078,2615.4,2615.3,1.73732659]
[1729183915394,3.59016,2615.4,2615.3,1.73732659]
[1729183915605,3.2078,2615.4,2615.3,1.73732659]
[1729183917005,3.59016,2615.4,2615.3,1.73732659]
[1729183917297,3.59016,2615.4,2615.3,3.23835434]
[1729183917498,3.59016,2615.4,2615.3,1.73732659]
[1729183917806,0.38236,2615.4,2615.3,1.73732659]
[1729183918407,2.98,2615.6,2615.3,1.35388227]
[1729183918598,0.38236,2615.5,2615.4,3.63189095]
[1729183919304,3.36235,2615.6,2615.5,0.38235]
[1729183919492,3.36235,2615.6,2615.5,0.79925]
[1729183919695,3.36235,2615.6,2615.5,0.8159]
[1729183921407,3.36235,2615.6,2615.5,2.16914721]
[1729183922203,3.36235,2615.6,2615.5,3.67020589]
[1729183923209,3.36235,2615.6,2615.5,4.05255589]
[1729183923402,3.36235,2615.6,2615.5,3.67020589]
[1729183923600,3.36235,2615.6,2615.5,4.05255589]
[1729183924108,3.36235,2615.6,2615.5,3.67020589]
[1729183925003,3.36235,2615.6,2615.5,2.16914721]
[1729183925598,3.36235,2615.6,2615.5,1.35324721]
[1729183925798,0.38235,2615.5,2615.3,1.50105868]
[1729183926007,0.38238,2615.3,2615.2,1.50105868]
[1729183926306,0.38238,2615.3,2615.2,2.85455977]
[1729183926501,0.38238,2615.3,2615.2,4.20808959]
[1729183927401,0.38238,2615.3,2615.2,2.70703091]
[1729183927905,0.38238,2615.3,2615.2,4.20808959]
[1729183928101,0.38238,2615.3,2615.2,2.70703091]
[1729183928299,0.38238,2615.3,2615.2,4.20808959]
[1729183928498,0.38238,2615.3,2615.2,2.70703091]
[1729183929013,0.38238,2615.3,2615.2,4.20808959]
[1729183930110,0.38238,2615.3,2615.2,2.70703091]
[1729183930410,0.38238,2615.3,2615.2,4.20808959]
[1729183930612,0.38238,2615.3,2615.2,2.70703091]
[1729183930815,0.38238,2615.3,2615.2,4.20808959]
[1729183931114,0.38238,2615.3,2615.2,1.35352982]
[1729183931412,4.20638,2615.3,2615.2,1.35352982]
[1729183931604,4.20638,2615.3,2615.2,0.03959227]
[1729183931605,13.41418,2615.3,2615.2,0.03959227]
[1729183931911,13.41418,2615.3,2614.7,1.90005868]
[1729183931912,0.38245,2614.8,2614.7,1.90005868]
[1729183932111,0.38245,2614.8,2614.7,2.28252868]
[1729183932112,3.36245,2614.8,2614.7,2.28252868]
[1729183932303,3.36245,2614.8,2614.7,0.78147]
[1729183932603,3.36245,2614.8,2614.7,2.28264717]
[1729183932806,3.36245,2614.8,2614.7,1.90017717]
[1729183933110,3.36245,2614.8,2614.7,1.90018458]
[1729183933308,3.36245,2614.8,2614.7,2.2824374]
[1729183933810,3.36245,2614.8,2614.7,1.8999674]
[1729183935513,3.36245,2614.8,2614.7,0.399]
[1729183935711,0.95607,2615.0,2614.7,0.399]
[1729183935712,2.98,2615.0,2614.7,1.8999674]
[1729183935910,3.36241,2615.2,2615.0,0.38241]
[1729183936109,3.36241,2615.2,2615.1,0.4254]
[1729183938513,0.38239,2615.3,2615.2,0.38239]
[1729183938707,0.38239,2615.3,2615.2,0.79259]
[1729183939416,3.36237,2615.4,2615.3,0.38238]
[1729183939717,5.0541,2615.6,2615.2,0.4102]
[1729183939718,0.38236,2615.5,2615.4,0.38236]
[1729183939920,6.1878,2615.6,2615.2,1.9111674]
[1729183940110,0.38237,2615.4,2615.3,0.38237]
[1729183940713,0.38236,2615.5,2615.3,1.8833474]
[1729183940919,0.38236,2615.5,2615.4,0.38236]
[1729183941813,2.98,2615.6,2615.4,0.38236]
[1729183942017,0.38235,2615.5,2615.4,0.38236]
[1729183942911,2.98,2615.6,2615.3,1.5009674]
[1729183943215,0.38236,2615.4,2615.3,0.38237]
[1729183943409,2.98,2615.6,2615.2,0.4102]
[1729183943609,0.38236,2615.5,2615.4,0.38236]
[1729183944118,0.38235,2615.5,2615.4,0.38236]
[1729183945317,0.38235,2615.5,2615.3,0.38237]
[1729183946016,0.38235,2615.5,2615.4,0.38236]
[1729183946217,2.98,2615.6,2615.2,0.4102]
[1729183946420,2.98,2615.4,2615.3,0.38237]
[1729183947014,2.98,2615.4,2615.2,0.4102]
[1729183947211,4.16365,2615.6,2615.2,2.41342358]
[1729183947514,3.36238,2615.3,2615.2,2.41342358]
[1729183948015,3.36238,2615.3,2615.2,5.48857223]
[1729183948216,3.36238,2615.3,2615.2,0.4102]
[1729183948518,3.36238,2615.3,2615.2,2.41342358]
[1729183949420,3.36238,2615.3,2615.2,0.4102]
[1729183951217,0.38238,2615.3,2615.2,0.79259]
[1729183951516,3.36237,2615.4,2615.3,0.38238]
[1729183951717,3.59014,2615.6,2615.5,0.38235]
[1729183952116,3.2078,2615.6,2615.5,1.7282175]
[1729183952626,2.98,2616.1,2615.6,0.95583]
[1729183952923,0.38228,2616.0,2615.9,1.50252728]
[1729183953127,0.38228,2616.0,2615.9,2.84839478]
[1729183954022,0.38228,2616.0,2615.9,3.23068478]
[1729183954324,0.38228,2616.0,2615.9,2.84839478]
[1729183954634,0.38228,2616.0,2615.9,1.3458675]
[1729183954923,0.38228,2616.0,2615.9,2.84839478]
[1729183955516,0.38228,2616.0,2615.9,1.34493001]
[1729183955721,0.38228,2616.0,2615.9,2.84745729]
[1729183956523,0.38228,2616.0,2615.9,1.34493001]
[1729183956921,0.38228,2616.0,2615.9,2.84745729]
[1729183957627,0.38228,2616.0,2615.9,3.22974729]
[1729183958223,0.38228,2616.0,2615.9,2.84745729]
[1729183959127,0.38228,2616.0,2615.9,1.34493001]
[1729183959719,0.38229,2615.9,2615.8,1.88482728]
[1729183959926,0.38229,2615.9,2615.8,2.8466667]
[1729183960331,0.38229,2615.9,2615.8,2.84668436]
[1729183960628,3.36229,2615.9,2615.8,2.84668436]
[1729183962329,3.36229,2615.9,2615.8,1.34415708]
[1729183962522,2.98,2615.9,2615.7,2.32272728]
[1729183962723,0.38231,2615.8,2615.7,2.32272728]
[1729183962937,0.38231,2615.8,2615.7,3.6664932]
[1729183963431,0.38231,2615.8,2615.7,2.16396592]
[1729183963727,0.38231,2615.8,2615.7,3.6664932]
[1729183964425,0.38231,2615.8,2615.7,4.0488132]
[1729183964626,0.38231,2615.8,2615.7,3.6664932]
[1729183965436,0.38231,2615.8,2615.7,4.0488132]
[1729183969637,0.38231,2615.8,2615.7,4.04831136]
[1729183970041,0.38231,2615.8,2615.7,3.66599136]
[1729183970246,2.98,2615.9,2615.6,1.50252728]
[1729183970247,0.38232,2615.7,2615.6,1.50252728]
[1729183970432,3.36232,2615.7,2615.6,2.84583972]
[1729183970637,12.8032,2615.7,2615.4,1.50252728]
[1729183970838,0.38235,2615.5,2615.4,1.50252728]
[1729183971143,0.38235,2615.5,2615.2,1.50252728]
[1729183971144,2.98,2615.5,2615.2,1.50252728]
[1729183971442,0.38238,2615.3,2615.1,5.09922728]
[1729183971737,0.38238,2615.3,2615.2,1.34343383]
[1729183971943,1.76238,2615.3,2615.2,1.72582383]
[1729183972145,1.76238,2615.3,2615.2,1.34343383]
[1729183972544,0.38239,2615.2,2615.1,3.9791]
[1729183972746,1.76239,2615.2,2615.1,5.32253067]
[1729183972943,1.76239,2615.2,2615.1,5.32253897]
[1729183973243,1.76239,2615.2,2615.1,3.9791]
[1729183973746,1.76239,2615.2,2615.1,5.32256107]
[1729183974143,0.38239,2615.2,2615.1,0.7713]
[1729183976437,0.38239,2615.2,2615.1,2.11484156]
[1729183976631,0.38239,2615.2,2615.1,2.11484177]
[1729183976833,0.38239,2615.2,2615.1,0.7713]
[1729183977037,0.38239,2615.2,2615.1,2.11484006]
[1729183977539,0.38239,2615.2,2615.1,0.7713]
[1729183977849,0.38239,2615.2,2615.1,2.11490063]
[1729183978046,0.38239,2615.2,2615.1,0.7713]
[1729183978349,2.99,2615.6,2615.1,7.0592792]
[1729183978538,0.38237,2615.4,2615.3,0.38237]
[1729183979341,2.99,2615.6,2615.2,1.50252728]
[1729183979644,0.38236,2615.4,2615.3,3.65643419]
[1729183980546,0.38236,2615.4,2615.3,3.65644419]
[1729183981344,0.38236,2615.4,2615.3,2.15391691]
[1729183981545,2.99,2615.6,2615.3,1.77153691]
[1729183981842,2.99,2615.6,2615.4,3.26725935]
[1729183981843,0.38235,2615.5,2615.4,3.26725935]
[1729183982642,0.38235,2615.5,2615.4,3.26729527]
[1729183983656,0.38235,2615.5,2615.4,3.64965527]
[1729183983849,0.38235,2615.5,2615.4,2.14833283]
[1729183984346,0.38235,2615.5,2615.4,4.15170254]
[1729183984951,0.38235,2615.5,2615.4,1.76597283]
[1729183986053,0.38235,2615.5,2615.4,3.76934254]
[1729183987449,0.38235,2615.5,2615.4,4.15170254]
[1729183989658,0.38235,2615.5,2615.4,3.76934254]
[1729183989957,0.38235,2615.5,2615.4,4.15170254]
[1729183990157,4.417,2615.9,2615.4,3.76934254]
[1729183990355,4.417,2615.9,2615.6,1.88459014]
[1729183990356,0.38232,2615.7,2615.6,1.88459014]
[1729183990663,0.38232,2615.7,2615.6,2.84638237]
[1729183990856,0.38232,2615.7,2615.6,1.72641283]
[1729183991068,0.38232,2615.7,2615.6,3.22870168]
[1729183991260,0.38232,2615.7,2615.6,3.22865905]
[1729183991457,0.38232,2615.7,2615.6,3.2287207]
[1729183991653,0.38232,2615.7,2615.6,1.72641283]
[1729183991963,0.38232,2615.7,2615.6,1.72707385]
[1729183993557,0.38232,2615.7,2615.6,1.34473385]
[1729183993759,0.38232,2615.7,2615.6,1.72707385]
[1729183994455,0.38232,2615.7,2615.6,1.34473385]
[1729183994654,0.38234,2615.6,2615.5,0.78825]
[1729183995055,0.38234,2615.6,2615.5,2.13316615]
[1729183995456,0.38232,2615.8,2615.7,0.38231]
[1729183995657,4.417,2615.9,2615.5,1.90839228]
[1729183995966,0.38234,2615.7,2615.6,1.72729696]
[1729183996159,0.38234,2615.7,2615.6,1.34496696]
[1729183996468,0.38234,2615.7,2615.6,2.84745924]
[1729183996670,0.38234,2615.7,2615.6,3.22986095]
[1729183997162,1.76234,2615.7,2615.6,1.34502867]
[1729183997565,1.76234,2615.7,2615.6,1.72736867]
[1729183997965,1.76234,2615.7,2615.6,1.34502867]
[1729183998364,1.76234,2615.7,2615.6,0.38234]
[1729183998666,1.76234,2615.7,2615.6,1.72749479]
[1729183998858,1.76234,2615.7,2615.5,2.29073228]
[1729183998859,1.38,2615.7,2615.5,2.29073228]
[1729183999068,1.76234,2615.6,2615.5,2.29074228]
[1729183999261,1.76234,2615.6,2615.5,3.63589949]
[1729184000859,1.76234,2615.6,2615.5,3.25354949]
[1729184001055,1.76234,2615.6,2615.5,2.84764949]
[1729184001267,1.76234,2615.6,2615.5,2.34715887]
[1729184001471,1.76234,2615.6,2615.5,2.34742295]
[1729184001763,1.76234,2615.6,2615.5,3.34880666]
[1729184002865,1.38,2615.6,2615.5,3.73115666]
[1729184003171,1.38,2615.6,2615.5,4.41882019]
[1729184003471,1.38,2615.6,2615.5,6.92303233]
[1729184003865,1.76234,2615.6,2615.5,6.92303233]
[1729184004372,1.76234,2615.6,2615.5,6.92320887]
[1729184006167,1.76234,2615.6,2615.5,6.9238543]
[1729184006966,1.38,2615.6,2615.5,6.9238543]
[1729184007162,1.18839124,2615.6,2615.5,6.9238543]
[1729184009662,1.18839124,2615.6,2615.5,6.42468577]
[1729184010970,1.18839124,2615.6,2615.5,6.41866999]
[1729184011172,1.18839124,2615.6,2615.5,1.34375879]
[1729184011477,1.18839124,2615.6,2615.5,2.84782547]
[1729184012366,5.01159124,2615.6,2615.5,1.34375879]
[1729184012565,5.01159124,2615.6,2615.5,2.34658158]
[1729184012873,5.82759124,2615.6,2615.5,1.00282279]
[1729184013269,11.82759124,2615.6,2615.5,1.00282279]
[1729184013776,12.06253357,2615.6,2615.5,1.00282279]
[1729184014175,15.27033357,2615.6,2615.5,1.00282279]
[1729184015081,9.27033357,2615.6,2615.5,1.00282279]
[1729184015379,9.27033357,2615.6,2615.5,2.34712648]
[1729184015572,15.27033357,2615.6,2615.5,1.00282279]
[1729184016973,15.27033357,2615.6,2615.5,2.84842329]
[1729184017673,15.27033357,2615.6,2615.5,1.34435661]
[1729184017872,15.27033357,2615.6,2615.5,2.84895271]
[1729184020577,15.27033357,2615.6,2615.5,2.84896891]
[1729184024373,12.06253357,2615.6,2615.5,2.84896891]
[1729184024573,15.27033357,2615.6,2615.5,2.84896891]
[1729184024780,14.88799357,2615.6,2615.5,1.003092]
[1729184024986,15.27033357,2615.6,2615.5,1.003092]
[1729184025373,15.67233357,2615.6,2615.5,1.003092]
[1729184025989,9.67233357,2615.6,2615.5,1.003092]
[1729184026283,4.20555,2615.5,2615.1,2.41754361]
[1729184026490,1.76239,2615.2,2615.1,0.8041]
[1729184026786,1.76239,2615.2,2615.1,2.14831199]
[1729184027388,3.14239,2615.2,2615.1,2.14831199]
[1729184027687,1.76239,2615.2,2615.1,2.14831199]
[1729184027881,1.99822817,2615.2,2615.1,2.14831199]
[1729184028583,0.38244,2614.9,2614.8,2.00504361]
[1729184028790,0.38247,2614.7,2614.6,0.8042]
[1729184029085,0.3825,2614.5,2614.4,2.00504361]
[1729184029280,0.38253,2614.3,2614.2,6.03124361]
[1729184029482,3.14253,2614.3,2614.2,4.0262]
[1729184030687,6.35033,2614.3,2614.2,0.8184]
[1729184032181,5.20081383,2614.3,2614.2,0.8184]
[1729184032380,6.58081383,2614.3,2614.2,0.8184]
[1729184033483,5.20081383,2614.3,2614.2,0.8184]
[1729184033681,5.20081383,2614.3,2614.2,1.20094]
[1729184034282,5.20081383,2614.3,2614.2,0.8184]
[1729184034691,6.58081383,2614.3,2614.2,0.8184]
[1729184035986,0.38254,2614.2,2614.1,0.38254083]
[1729184036291,0.38254,2614.2,2613.6,0.824]
[1729184036292,0.38261,2613.7,2613.6,0.824]
[1729184036497,3.14261,2613.7,2613.6,0.824]
[1729184036879,0.38267,2613.3,2613.2,0.4113]
[1729184037087,1.76267,2613.3,2613.2,0.4113]
[1729184037285,1.38,2613.3,2613.2,0.79399]
[1729184037490,1.76267,2613.3,2613.2,0.79399]
[1729184039891,1.76267,2613.3,2613.2,2.17399]
[1729184040986,1.76267,2613.3,2613.2,0.79399]
[1729184041584,1.38,2613.3,2613.2,2.17399]
[1729184042294,3.59044,2613.6,2613.5,0.38264]
[1729184042497,1.38,2613.6,2613.5,1.76264]
[1729184042791,1.76263,2613.6,2613.5,0.38264]
[1729184043196,0.38265,2613.5,2613.4,0.38264]
[1729184043393,1.76265,2613.5,2613.4,0.38264]
[1729184043694,1.38,2613.5,2613.4,0.38264]
[1729184044593,1.76264,2613.5,2613.4,0.38264]
[1729184045090,1.76264,2613.5,2613.4,0.38266]
[1729184045297,1.38,2613.5,2613.2,3.6191]
[1729184045498,1.76267,2613.3,2613.2,0.79399]
[1729184045888,1.38,2613.3,2613.2,4.62039]
[1729184046298,0.38264,2613.6,2613.5,0.38263]
[1729184046591,3.2078,2613.8,2613.7,0.38261]
[1729184046994,3.2078,2613.8,2613.7,0.80881]
[1729184047195,3.5904,2613.8,2613.7,0.80881]
[1729184047399,3.2078,2613.8,2613.7,0.80881]
[1729184047701,4.9704,2613.8,2613.7,0.80881]
[1729184047895,3.5904,2613.8,2613.7,0.80881]
[1729184048395,3.37258,2614.0,2613.9,0.38258]
[1729184051097,2.99,2614.2,2613.7,1.38274]
[1729184051298,4.6348,2614.3,2613.8,3.2078]
[1729184051511,5.01734,2614.3,2614.2,0.38254]
[1729184053491,3.2078,2614.3,2614.2,0.38254]
[1729184053695,3.37252,2614.4,2614.2,0.38253]
[1729184054004,3.37252,2614.4,2614.3,0.38253]
[1729184054205,2.99,2614.4,2614.3,0.38253]
[1729184055393,3.37251,2614.4,2614.3,0.38253]
[1729184055600,2.99,2614.4,2614.3,0.38253]
[1729184055909,2.99,2614.6,2614.1,3.2078]
[1729184056203,3.37248,2614.6,2614.5,0.3825]
[1729184056393,2.99,2614.6,2614.5,0.3825]
[1729184057003,3.37248,2614.6,2614.5,0.3825]
[1729184057300,0.3825,2614.5,2614.4,0.8057]
[1729184058206,2.99,2614.6,2614.5,0.3825]
[1729184058399,2.99,2614.6,2614.4,0.4232]
[1729184058704,0.3825,2614.5,2614.4,0.8057]
[1729184058899,2.99,2614.6,2614.4,0.4232]
[1729184059105,3.37249,2614.6,2614.5,0.3825]
[1729184060603,0.3825,2614.5,2614.4,0.8057]
[1729184060805,3.37249,2614.6,2614.5,0.3825]
[1729184061601,2.04895073,2614.8,2614.5,0.4179]
[1729184061602,3.3833,2614.8,2614.5,0.4179]
[1729184061805,2.99,2614.9,2614.8,0.38245]
[1729184062001,0.38242,2615.0,2614.7,0.95618]
[1729184062308,0.38242,2615.0,2614.9,0.38244]
[1729184062695,3.2078,2615.1,2614.8,0.4152]
[1729184063002,0.38244,2614.9,2614.8,0.79764]
[1729184065310,3.37244,2614.9,2614.8,0.4152]
[1729184065809,3.37244,2614.9,2614.8,0.79765]
[1729184067106,0.3824,2615.2,2615.1,0.38239]
[1729184067608,3.59018,2615.4,2615.3,0.38238]
[1729184067813,0.38238,2615.3,2615.2,0.77079]
[1729184068002,3.59017,2615.4,2615.3,0.38238]
[1729184068202,3.2078,2615.4,2615.2,0.3884]
[1729184068412,0.38238,2615.3,2615.2,0.77079]
[1729184068607,3.59017,2615.4,2615.3,0.38238]
[1729184068912,3.59018,2615.4,2615.3,0.38238]
[1729184069113,0.38238,2615.3,2615.2,0.77079]
[1729184071408,2.99,2615.3,2614.8,0.4152]
[1729184071710,0.38241,2615.2,2615.1,0.3824]
[1729184071919,3.37239,2615.3,2615.2,0.38239]
[1729184072816,0.3824,2615.2,2615.1,0.38239]
[1729184074917,2.99,2615.3,2615.2,0.38237993]
[1729184075112,3.37238,2615.3,2615.2,0.38237993]
[1729184080013,1.76238,2615.3,2615.2,0.38237993]
[1729184086122,1.76238,2615.3,2615.2,0.76476993]
[1729184086317,1.76238,2615.3,2615.2,0.38237993]
[1729184086518,1.76238,2615.3,2615.2,0.76476993]
[1729184086717,1.76238,2615.3,2615.2,0.38237993]
[1729184089423,1.76238,2615.3,2615.2,0.76476993]
[1729184092027,1.76238,2615.3,2615.2,0.38237993]
[1729184092323,1.76238,2615.3,2615.2,0.76476993]
[1729184092817,1.76238,2615.3,2615.2,0.38237993]
[1729184098123,1.76238,2615.3,2615.2,0.76476993]
[1729184098629,1.76238,2615.3,2615.2,0.38237993]
[1729184099028,1.76238,2615.3,2615.2,0.76476993]
[1729184099425,1.76238,2615.3,2615.2,0.38237993]
[1729184100320,1.76238,2615.3,2615.2,1.67021577]
[1729184100527,1.76238,2615.3,2615.2,2.46960577]
[1729184100725,1.38,2615.3,2615.2,3.96549077]
[1729184100927,1.76238,2615.3,2615.2,3.96549077]
[1729184102923,1.76238,2615.3,2615.2,3.96407034]
[1729184103124,1.76238,2615.3,2615.2,3.58168034]
[1729184103531,1.76238,2615.3,2615.2,3.16468034]
[1729184103930,1.76238,2615.3,2615.2,1.66879534]
[1729184104335,1.76238,2615.3,2615.2,3.54707034]
[1729184104527,1.76238,2615.3,2615.2,1.66879534]
[1729184105228,1.76238,2615.3,2615.2,2.05118534]
[1729184105429,1.76238,2615.3,2615.2,4.04644589]
[1729184105627,1.76238,2615.3,2615.2,2.05118534]
[1729184105835,1.76238,2615.3,2615.2,4.04644589]
[1729184106537,1.38,2615.3,2615.2,6.23984112]
[1729184106734,1.38,2615.3,2615.2,4.62697057]
[1729184107127,1.38,2615.3,2615.2,7.12104626]
[1729184107534,1.38,2615.3,2615.2,7.12440371]
[1729184108038,1.76238,2615.3,2615.2,7.12440371]
[1729184111032,1.38,2615.3,2615.2,7.12440371]
[1729184111634,1.76238,2615.3,2615.2,7.12440371]
[1729184111829,1.38,2615.3,2615.2,7.12440371]
[1729184112139,1.76238,2615.3,2615.2,7.12494593]
[1729184113946,3.75885,2615.6,2615.2,7.12494593]
[1729184113947,1.38,2615.4,2615.2,6.99082794]
[1729184114139,1.76237,2615.4,2615.3,4.64017031]
[1729184114446,1.76237,2615.4,2615.3,4.07008501]
[1729184114631,1.76237,2615.4,2615.3,2.0627701]
[1729184114830,1.76237,2615.4,2615.3,2.0627801]
[1729184115035,1.76237,2615.4,2615.3,3.68771501]
[1729184115332,1.76237,2615.4,2615.3,2.0627801]
[1729184115735,1.76237,2615.4,2615.3,3.68771501]
[1729184116131,1.76236,2615.4,2615.3,4.07009501]
[1729184116744,1.76236,2615.4,2615.3,4.07001558]
[1729184116933,1.76236,2615.4,2615.3,3.68763558]
[1729184117130,1.76236,2615.4,2615.3,1.68032067]
[1729184119051,1.76236,2615.4,2615.3,2.79404413]
[1729184119744,1.76236,2615.4,2615.3,1.28862067]
[1729184120137,1.76236,2615.4,2615.3,2.79404413]
[1729184120441,1.76236,2615.4,2615.3,1.28862067]
[1729184121546,1.76236,2615.4,2615.3,1.28861484]
[1729184122641,1.99387746,2615.4,2615.3,1.28861484]
[1729184124943,4.20638,2615.3,2615.2,0.14797994]
[1729184125150,0.95599,2615.2,2615.0,1.50560221]
[1729184125449,0.95599,2615.2,2614.7,0.4146]
[1729184125450,0.38245,2614.8,2614.7,2.42191491]
[1729184125652,3.18545,2614.8,2614.7,1.28220233]
[1729184126146,3.18545,2614.8,2614.7,1.28226264]
[1729184128355,3.18545,2614.8,2614.7,1.28133832]